bitfinex-derivatives/quotes_BTCF0:USTF0_20250402
["timestamp","ask_amount","ask_price","bid_price","bid_amount"]
[1743602098875,0.25467229,85765.0,85755.0,0.0296]
[1743602099193,0.3608,85758.0,85755.0,0.0296]
[1743602099388,0.36140001,85758.0,85755.0,0.0292]
[1743602099774,0.36095274,85758.0,85755.0,0.0292]
[1743602099971,0.36050555,85758.0,85755.0,0.0192]
[1743602100182,0.12410084,85757.0,85751.0,0.0001749]
[1743602100382,0.125,85756.0,85751.0,0.00084]
[1743602100578,0.125,85756.0,85746.0,0.20457775]
[1743602100579,0.12584,85756.0,85746.0,0.20417775]
[1743602100884,0.3608,85748.0,85746.0,0.22417775]
[1743602101178,0.125,85747.0,85746.0,0.20501775]
[1743602101384,0.12592,85747.0,85746.0,0.22501775]
[1743602101589,0.125,85747.0,85746.0,0.02084]
[1743602101782,0.12584,85747.0,85746.0,0.03084]
[1743602102179,0.00084,85747.0,85746.0,0.03084]
[1743602102382,0.1202,85754.0,85746.0,0.03084]
[1743602102580,0.1202,85754.0,85753.0,0.3608]
[1743602102782,0.12104,85754.0,85753.0,0.39164]
[1743602103287,0.12104,85754.0,85753.0,0.03084]
[1743602103586,0.5349401,85779.0,85753.0,0.03]
[1743602103788,0.2514,85778.0,85762.0,0.3608]
[1743602104088,0.25248001,85778.0,85762.0,0.43148]
[1743602104282,0.25248001,85778.0,85762.0,0.43108]
[1743602104679,0.25248001,85778.0,85762.0,0.42068]
[1743602104881,0.0001749,85779.0,85776.0,0.3608]
[1743602105076,0.65087307,85830.0,85777.0,0.10496]
[1743602105077,0.13,85799.0,85777.0,0.10496]
[1743602105389,0.12955297,85799.0,85798.0,0.3608]
[1743602105585,0.12955297,85799.0,85798.0,0.39232]
[1743602105782,0.12910602,85799.0,85798.0,0.02192]
[1743602106092,0.12685313,85804.0,85798.0,0.03]
[1743602106289,0.3605281,85821.0,85799.0,0.1064]
[1743602106487,0.3605281,85821.0,85807.0,0.3608]
[1743602106703,0.34039307,85830.0,85815.0,0.3608]
[1743602106884,0.12955328,85828.0,85815.0,0.39264]
[1743602107090,0.49035328,85828.0,85816.0,0.1327]
[1743602107291,0.3608,85817.0,85800.0,0.3608]
[1743602107482,0.3608,85801.0,85781.0,0.3608]
[1743602107791,0.3608,85801.0,85800.0,0.00017479]
[1743602107792,0.36140001,85801.0,85800.0,0.00017479]
[1743602107991,0.00017479,85800.0,85782.0,0.1323]
[1743602108295,0.12984837,85800.0,85782.0,0.23995479]
[1743602108493,0.3608,85787.0,85782.0,0.13295479]
[1743602108796,0.1308536,85786.0,85752.0,0.0089079]
[1743602108988,0.3608,85768.0,85767.0,0.40246247]
[1743602109196,0.36035368,85768.0,85767.0,0.40306247]
[1743602109491,0.49341976,85768.0,85767.0,0.40266247]
[1743602109688,0.49341976,85768.0,85767.0,0.40226247]
[1743602110090,0.49297352,85768.0,85767.0,0.40226247]
[1743602110896,0.49252736,85768.0,85767.0,0.40226247]
[1743602111285,0.00064,85768.0,85767.0,0.40226247]
[1743602112087,0.13080998,85768.0,85767.0,0.40226247]
[1743602112385,0.13080998,85768.0,85767.0,0.0006]
[1743602112585,0.13080998,85768.0,85759.0,0.0001749]
[1743602112786,0.2586,85767.0,85759.0,0.0008549]
[1743602112988,0.25924,85767.0,85759.0,0.0008549]
[1743602113797,0.0001749,85776.0,85763.0,0.3608]
[1743602113986,0.0001749,85776.0,85764.0,0.7184]
[1743602114188,0.0001749,85776.0,85764.0,0.1245]
[1743602114189,0.3608,85770.0,85764.0,0.1245]
[1743602114394,0.13265392,85769.0,85764.0,0.1245]
[1743602114587,0.25590792,85769.0,85764.0,0.1253]
[1743602114791,0.3608,85766.0,85764.0,0.1253]
[1743602114993,0.12325408,85765.0,85764.0,0.0008]
[1743602115296,0.12385409,85765.0,85733.0,0.00873043]
[1743602115485,0.3608,85764.0,85743.0,0.38128]
[1743602115792,0.00039416,85764.0,85757.0,0.3608]
[1743602115987,0.1237,85763.0,85757.0,0.0006]
[1743602116183,0.12430001,85763.0,85757.0,0.00084]
[1743602116388,0.12430001,85763.0,85751.0,0.1066749]
[1743602116594,0.1305,85762.0,85751.0,0.1071549]
[1743602116799,0.13085424,85762.0,85759.0,0.3608]
[1743602117097,0.13085424,85762.0,85759.0,0.3616]
[1743602117294,0.13085424,85762.0,85759.0,0.3612]
[1743602117492,0.3608,85797.0,85761.0,0.3608]
[1743602117797,0.2484,85813.0,85780.0,0.31048]
[1743602117993,0.3608,85808.0,85793.0,0.3608]
[1743602118185,0.1222544,85807.0,85783.0,0.3608]
[1743602118491,0.3608,85800.0,85787.0,0.00837605]
[1743602118694,0.00104001,85807.0,85792.0,0.3608]
[1743602118889,0.3608,85808.0,85793.0,0.1269]
[1743602118890,0.00104001,85800.0,85793.0,0.1269]
[1743602119085,0.3608,85801.0,85792.0,0.00072]
[1743602119288,0.12915959,85799.0,85793.0,0.00112]
[1743602119493,0.3608,85794.0,85793.0,0.00112]
[1743602119687,0.3608,85794.0,85785.0,0.0001749]
[1743602119888,0.48995959,85794.0,85782.0,0.1314749]
[1743602120091,0.25485456,85793.0,85782.0,0.1314749]
[1743602120292,0.2544092,85793.0,85782.0,0.1314749]
[1743602120698,0.3608,85787.0,85782.0,0.1310749]
[1743602120898,0.2553,85786.0,85782.0,0.1306749]
[1743602122898,0.0001749,85793.0,85784.0,0.3608]
[1743602123097,0.1287,85812.0,85792.0,0.3608]
[1743602123299,0.1287,85812.0,85801.0,0.3608]
[1743602123694,0.3608,85802.0,85792.0,0.3608]
[1743602123895,0.1287,85801.0,85792.0,0.3608]
[1743602124398,0.3608,85795.0,85792.0,0.0008]
[1743602124597,0.36140001,85795.0,85783.0,0.1215749]
[1743602124896,0.26017187,85794.0,85783.0,0.00048]
[1743602125100,0.26040659,85794.0,85783.0,0.00048]
[1743602125599,0.25996139,85794.0,85783.0,0.00048]
[1743602125796,0.25996139,85794.0,85783.0,8e-05]
[1743602125995,0.36035488,85786.0,85783.0,0.00064]
[1743602126199,0.00060001,85786.0,85783.0,0.00064]
[1743602126392,0.13106518,85785.0,85783.0,0.00064]
[1743602126697,0.13142021,85785.0,85783.0,0.00064]
[1743602126904,0.13142021,85785.0,85783.0,0.00024]
[1743602127086,0.0008,85785.0,85783.0,0.00024]
[1743602127290,0.36035511,85795.0,85783.0,0.00024]
[1743602127493,0.00068,85795.0,85789.0,0.3608]
[1743602127697,0.31048,85830.0,85789.0,0.3608]
[1743602127698,0.3608,85824.0,85790.0,0.1314]
[1743602127897,0.3608,85824.0,85796.0,0.3608]
[1743602128198,0.3608,85815.0,85796.0,0.781]
[1743602128399,0.36053017,85816.0,85803.0,0.3608]
[1743602128699,0.36113018,85816.0,85803.0,0.361]
[1743602128903,0.13065535,85815.0,85803.0,0.361]
[1743602129211,0.3608,85807.0,85803.0,0.0006]
[1743602129397,0.1026,85806.0,85763.0,0.46344]
[1743602129599,0.3608,85786.0,85763.0,0.46344]
[1743602129798,0.36172,85786.0,85781.0,0.0001749]
[1743602129995,0.13302595,85785.0,85763.0,0.4628149]
[1743602130192,0.13302595,85785.0,85770.0,0.3608]
[1743602130387,0.3608,85786.0,85772.0,0.27246175]
[1743602130590,0.3608,85773.0,85772.0,0.27246175]
[1743602131097,0.48252388,85773.0,85772.0,0.27314175]
[1743602131303,0.48252388,85773.0,85772.0,0.27246175]
[1743602131997,0.48252388,85773.0,85772.0,0.07266175]
[1743602132591,0.63252388,85773.0,85754.0,0.4080446]
[1743602132789,0.3608,85755.0,85754.0,0.4080446]
[1743602133098,0.3608,85755.0,85727.0,0.47355448]
[1743602133300,0.3608,85733.0,85727.0,0.47355448]
[1743602133693,0.3608,85733.0,85727.0,0.00174962]
[1743602134403,0.3608,85728.0,85727.0,0.00174962]
[1743602134603,0.3608,85728.0,85727.0,0.00134962]
[1743602134902,0.3608,85728.0,85727.0,0.00094962]
[1743602135299,0.3608,85728.0,85727.0,0.00054962]
[1743602135598,0.49017577,85728.0,85701.0,0.47157976]
[1743602135803,0.3608,85703.0,85702.0,0.1229]
[1743602135999,0.3608,85703.0,85702.0,0.12354]
[1743602136299,0.36172,85703.0,85702.0,0.00024]
[1743602136509,0.36172,85703.0,85701.0,0.47141976]
[1743602136712,0.1312,85702.0,85701.0,0.47201976]
[1743602136893,0.13232001,85702.0,85701.0,0.47201976]
[1743602137091,0.13232001,85702.0,85701.0,0.47161976]
[1743602137290,0.00017502,85711.0,85701.0,0.47161976]
[1743602137291,0.00017502,85711.0,85701.0,0.57333976]
[1743602137598,0.00017502,85711.0,85708.0,0.3604]
[1743602137796,0.3608,85729.0,85709.0,0.1327]
[1743602138008,0.12,85734.0,85725.0,0.3604]
[1743602138195,0.13971333,85735.0,85725.0,0.5604]
[1743602138395,0.0008,85735.0,85734.0,0.3608]
[1743602138697,0.20845763,85746.0,85734.0,0.5314]
[1743602138901,0.20949764,85746.0,85742.0,0.3608]
[1743602139101,0.21061765,85746.0,85742.0,0.36192]
[1743602139305,0.20957764,85746.0,85742.0,0.36192]
[1743602139601,0.20957764,85746.0,85742.0,0.00112]
[1743602139602,0.3608,85744.0,85742.0,0.00112]
[1743602139797,0.36140001,85744.0,85734.0,0.3608]
[1743602139999,0.2431,85743.0,85734.0,0.00112]
[1743602140196,0.3608,85737.0,85731.0,0.00017502]
[1743602140396,0.2431,85736.0,85731.0,0.00121502]
[1743602140601,0.37292638,85736.0,85731.0,0.00017502]
[1743602140904,0.24370001,85736.0,85731.0,0.00017502]
[1743602141799,0.24370001,85736.0,85731.0,0.00121502]
[1743602142201,0.3608,85733.0,85731.0,0.00121502]
[1743602142405,0.2543,85732.0,85731.0,0.00017502]
[1743602142593,0.25490001,85732.0,85731.0,0.00017502]
[1743602142799,0.00060001,85732.0,85731.0,0.00017502]
[1743602143007,0.00112001,85732.0,85731.0,0.00121502]
[1743602143308,0.00112001,85732.0,85731.0,0.26391502]
[1743602143807,0.00112001,85732.0,85731.0,0.82471502]
[1743602144007,0.1296,85742.0,85731.0,0.82471502]
[1743602144305,0.13064001,85742.0,85731.0,0.84471502]
[1743602144609,0.1289,85741.0,85731.0,0.62471502]
[1743602144801,0.12994001,85741.0,85731.0,0.26391502]
[1743602145108,0.3608,85733.0,85731.0,0.00121502]
[1743602145300,0.2585,85732.0,85731.0,0.00017502]
[1743602145497,0.25910001,85732.0,85731.0,0.00017502]
[1743602145802,0.3903799,85732.0,85718.0,0.00046664]
[1743602145992,0.3608,85719.0,85718.0,0.00046664]
[1743602146196,0.36140001,85719.0,85718.0,0.00046664]
[1743602146396,0.72173345,85719.0,85718.0,0.00046664]
[1743602146599,0.72173345,85719.0,85689.0,0.3608]
[1743602146600,0.84409779,85719.0,85681.0,0.37286841]
[1743602146795,0.36033362,85703.0,85688.0,0.1212]
[1743602146999,0.36093363,85703.0,85702.0,0.00064175]
[1743602147205,0.61546733,85703.0,85702.0,0.00064175]
[1743602147409,0.61500112,85703.0,85702.0,0.00064175]
[1743602147602,0.614535,85703.0,85702.0,0.00064175]
[1743602147904,0.61406897,85703.0,85702.0,0.00064175]
[1743602148205,0.25560001,85703.0,85702.0,0.00064175]
[1743602148404,0.00124001,85703.0,85702.0,0.00141502]
[1743602148610,0.00077415,85703.0,85702.0,0.24981502]
[1743602148806,0.00030838,85703.0,85702.0,0.24981502]
[1743602149001,0.255,85716.0,85702.0,0.24981502]
[1743602149202,0.25605431,85716.0,85702.0,0.24981502]
[1743602149404,0.3608,85703.0,85702.0,0.00141502]
[1743602149611,0.3608,85703.0,85702.0,0.00017502]
[1743602150004,0.36148,85703.0,85702.0,0.00017502]
[1743602150213,0.3608,85703.0,85702.0,0.00017502]
[1743602150407,0.48655343,85703.0,85702.0,0.00017502]
[1743602150914,0.48655343,85703.0,85700.0,0.09375304]
[1743602151114,0.1251,85702.0,85700.0,0.09375304]
[1743602151509,0.13225888,85701.0,85680.0,0.2549]
[1743602151703,0.3608,85691.0,85680.0,0.2549]
[1743602151910,0.13225888,85701.0,85680.0,0.2549]
[1743602151911,0.3608,85684.0,85680.0,0.2549]
[1743602152109,0.1251,85683.0,85682.0,0.00017502]
[1743602152306,0.2457,85683.0,85682.0,0.00017502]
[1743602152509,0.73470705,85683.0,85661.0,0.3608]
[1743602152811,0.3608,85667.0,85643.0,0.3608]
[1743602153013,0.3608,85667.0,85643.0,0.6508]
[1743602153014,0.2457,85666.0,85643.0,0.6508]
[1743602153321,0.36033318,85660.0,85647.0,0.3608]
[1743602153507,0.1301,85659.0,85647.0,0.4008]
[1743602153703,0.25063309,85659.0,85647.0,0.04]
[1743602153908,0.25063309,85659.0,85654.0,0.00046699]
[1743602155011,0.00017513,85662.0,85655.0,0.3608]
[1743602155204,0.00161513,85662.0,85656.0,0.2639]
[1743602155410,0.00161513,85662.0,85656.0,0.50538]
[1743602155614,0.00017513,85662.0,85656.0,0.50538]
[1743602155816,0.121,85677.0,85657.0,0.1206]
[1743602156019,0.3608,85687.0,85665.0,0.3608]
[1743602156220,0.3608,85680.0,85666.0,0.2635]
[1743602156521,0.1321,85679.0,85666.0,0.26498]
[1743602156721,0.13270001,85679.0,85666.0,0.26498]
[1743602156910,0.1243,85678.0,85666.0,0.26498]
[1743602157216,0.12574,85678.0,85666.0,0.13408]
[1743602157423,0.1321,85677.0,85667.0,0.1309]
[1743602157618,0.13274,85677.0,85667.0,0.13238]
[1743602157916,0.1243,85676.0,85667.0,0.13238]
[1743602158118,0.00148,85676.0,85667.0,0.15238]
[1743602158318,0.00148,85676.0,85667.0,0.25238]
[1743602158518,0.00148,85676.0,85668.0,0.10064]
[1743602158720,0.00148,85676.0,85668.0,0.60208]
[1743602159427,0.3608,85680.0,85668.0,0.60208]
[1743602159823,0.00017513,85681.0,85675.0,0.3608]
[1743602160025,0.00017513,85681.0,85676.0,0.1228]
[1743602160219,0.00017513,85681.0,85676.0,0.26688]
[1743602160524,0.00017513,85681.0,85676.0,0.24688]
[1743602161118,0.3608,85677.0,85676.0,0.00188]
[1743602161313,0.3608,85677.0,85667.0,0.245]
[1743602161526,0.3608,85668.0,85667.0,0.24696]
[1743602161716,0.3608,85668.0,85667.0,0.00196]
[1743602161917,0.37951534,85676.0,85656.0,0.245]
[1743602162127,0.1256,85667.0,85656.0,0.245]
[1743602162425,0.3608,85677.0,85656.0,0.245]
[1743602162623,0.3608,85668.0,85656.0,0.245]
[1743602162820,0.2515,85667.0,85656.0,0.245]
[1743602165025,0.2515,85667.0,85654.0,0.00046699]
[1743602165230,0.12738109,85666.0,85654.0,0.00046699]
[1743602165725,0.2477,85665.0,85654.0,0.00046699]
[1743602165915,0.3608,85658.0,85654.0,0.00234699]
[1743602166118,0.3608,85655.0,85636.0,0.1206]
[1743602166321,0.3608,85647.0,85638.0,0.00178708]
[1743602166528,0.1244,85646.0,85638.0,0.00178708]
[1743602166737,0.12580001,85646.0,85638.0,0.00178708]
[1743602168125,0.12580001,85646.0,85639.0,0.131]
[1743602168329,0.12580001,85646.0,85639.0,0.00132]
[1743602168726,0.3608,85640.0,85639.0,0.00132]
[1743602168931,0.00060001,85640.0,85638.0,0.00046708]
[1743602169233,0.1312,85639.0,85638.0,0.00046708]
[1743602169434,0.13188,85639.0,85638.0,0.00046708]
[1743602169627,0.25977172,85639.0,85620.0,0.1251]
[1743602169933,0.3608,85627.0,85626.0,0.00132]
[1743602170134,0.3608,85627.0,85607.0,0.1251]
[1743602170339,0.1312,85626.0,85607.0,0.1251]
[1743602170525,0.13188,85626.0,85607.0,0.1251]
[1743602170925,0.12341322,85625.0,85607.0,0.1251]
[1743602171129,0.12401323,85625.0,85606.0,0.00046725]
[1743602171323,0.3608,85618.0,85606.0,0.00046725]
[1743602171530,0.3608,85611.0,85606.0,0.00178725]
[1743602171740,0.1285,85610.0,85606.0,0.00178725]
[1743602171937,0.12982,85610.0,85606.0,0.00178725]
[1743602172332,0.36097513,85633.0,85607.0,0.6105]
[1743602172541,0.1285,85627.0,85615.0,0.3608]
[1743602172837,0.3608,85626.0,85615.0,0.00132]
[1743602173038,0.48946164,85626.0,85608.0,0.1269]
[1743602173339,0.3608,85619.0,85609.0,0.3608]
[1743602173540,0.1285,85618.0,85610.0,0.3608]
[1743602173731,0.12986,85618.0,85610.0,0.00136]
[1743602174731,0.00136,85618.0,85611.0,0.3608]
[1743602174930,0.3608,85626.0,85611.0,0.36212]
[1743602175131,0.1273,85631.0,85612.0,0.0988]
[1743602175430,0.3608,85629.0,85612.0,0.45982]
[1743602175631,0.00017513,85633.0,85619.0,0.67156986]
[1743602175835,0.00017513,85633.0,85620.0,0.2487]
[1743602176136,0.3608,85632.0,85620.0,0.28002]
[1743602176334,0.3608,85625.0,85620.0,0.25002]
[1743602176542,0.1273,85624.0,85612.0,0.3150776]
[1743602176726,0.1273,85624.0,85613.0,0.1205]
[1743602176926,0.1273,85624.0,85613.0,0.00092]
[1743602177334,0.1273,85624.0,85613.0,0.14142]
[1743602177734,0.1273,85624.0,85613.0,0.12142]
[1743602177926,0.1273,85624.0,85613.0,0.00092]
[1743602178131,0.25787258,85623.0,85613.0,0.00092]
[1743602178532,0.1272,85622.0,85613.0,0.00092]
[1743602178933,0.3608,85614.0,85613.0,0.00092]
[1743602179132,0.3608,85614.0,85613.0,0.00096]
[1743602180138,0.36140001,85614.0,85613.0,0.00096]
[1743602180530,0.49480618,85614.0,85606.0,0.00046725]
[1743602180735,0.3608,85607.0,85600.0,0.02658081]
[1743602181044,0.3608,85604.0,85600.0,0.02658081]
[1743602181237,0.1312,85603.0,85600.0,0.02658081]
[1743602181442,0.38490021,85603.0,85600.0,0.02658081]
[1743602183348,0.13188,85603.0,85600.0,0.38738081]
[1743602183543,0.3608,85619.0,85601.0,0.1255]
[1743602183746,0.1304,85618.0,85601.0,1.10678]
[1743602183950,0.1304,85618.0,85601.0,1.3293]
[1743602184943,0.36097513,85612.0,85601.0,0.12638]
[1743602185147,0.1304,85611.0,85601.0,0.12638]
[1743602185350,0.3608,85604.0,85601.0,0.00088]
[1743602185544,0.1304,85603.0,85600.0,0.02533081]
[1743602185744,0.3608,85601.0,85600.0,0.02533081]
[1743602185947,0.36148,85601.0,85600.0,0.02533081]
[1743602186147,0.49137285,85601.0,85600.0,0.02533081]
[1743602186753,0.49137285,85601.0,85600.0,0.02465081]
[1743602187054,0.61357285,85601.0,85600.0,0.02465081]
[1743602187640,0.76357285,85601.0,85551.0,0.3608]
[1743602187843,0.7216,85585.0,85543.0,0.2579]
[1743602188038,0.3608,85575.0,85544.0,0.3608]
[1743602188246,0.46168001,85575.0,85545.0,0.00891722]
[1743602188552,0.4871537,85575.0,85545.0,0.10931722]
[1743602188949,0.6371537,85575.0,85530.0,0.40705466]
[1743602189263,0.7216,85559.0,85531.0,0.3608]
[1743602189448,0.7216,85559.0,85539.0,0.1298]
[1743602189449,0.72228,85559.0,85539.0,0.1298]
[1743602189641,0.85191717,85559.0,85539.0,0.2606]
[1743602190745,0.85191717,85559.0,85539.0,0.1298]
[1743602192446,0.85191717,85559.0,85544.0,0.3608]
[1743602192756,0.72228,85559.0,85544.0,0.3608]
[1743602192949,0.00068,85559.0,85544.0,0.3608]
[1743602193249,0.1202,85566.0,85558.0,0.19046752]
[1743602193455,0.48188001,85566.0,85559.0,0.2586]
[1743602193643,0.48188001,85566.0,85559.0,0.46948]
[1743602193957,0.00088001,85566.0,85559.0,0.25948]
[1743602194145,0.1207,85575.0,85559.0,0.55948]
[1743602194347,0.17339912,85568.0,85559.0,0.55948]
[1743602194653,0.17435913,85568.0,85559.0,0.56948]
[1743602194855,0.17435913,85568.0,85559.0,0.54948]
[1743602195056,0.17339912,85568.0,85559.0,0.57948]
[1743602195252,0.17427913,85568.0,85559.0,0.57900118]
[1743602195452,0.17427913,85568.0,85559.0,0.34320118]
[1743602195652,0.1207,85567.0,85560.0,0.1258]
[1743602195852,0.00060001,85567.0,85560.0,0.12668]
[1743602196349,0.26470001,85567.0,85560.0,0.00088]
[1743602196549,0.26470001,85567.0,85560.0,0.19]
[1743602196859,0.26470001,85567.0,85560.0,0.00096]
[1743602197058,0.3608,85561.0,85559.0,0.13232118]
[1743602197248,0.1315,85560.0,85559.0,0.13232118]
[1743602197560,0.00064,85560.0,85559.0,0.41324118]
[1743602197745,0.3608,85570.0,85559.0,0.34324118]
[1743602197952,0.1315,85569.0,85559.0,0.33324118]
[1743602198249,0.13238001,85569.0,85559.0,0.13324118]
[1743602198554,0.3608,85560.0,85559.0,0.13324118]
[1743602198753,0.3608,85560.0,85559.0,0.00092]
[1743602198754,0.36168001,85560.0,85559.0,0.00092]
[1743602198949,0.49138803,85560.0,85558.0,0.00046752]
[1743602199145,0.123,85559.0,85558.0,0.00046752]
[1743602199452,0.24558,85559.0,85558.0,0.00046752]
[1743602199755,0.1297907,85559.0,85558.0,0.00046752]
[1743602199951,0.00068,85559.0,85558.0,0.00046752]
[1743602200151,0.3608,85568.0,85558.0,0.21134752]
[1743602200152,0.2449,85567.0,85558.0,0.21134752]
[1743602200352,0.24578001,85567.0,85559.0,0.13]
[1743602200551,0.34992463,85567.0,85559.0,0.13]
[1743602200752,0.34992463,85567.0,85559.0,0.34]
[1743602201059,0.22802463,85567.0,85561.0,0.3608]
[1743602201258,0.10502463,85567.0,85561.0,0.36168]
[1743602201452,0.10502463,85567.0,85561.0,0.67168]
[1743602202555,0.10502463,85567.0,85562.0,0.09868]
[1743602202753,0.17339912,85576.0,85563.0,0.3608]
[1743602202955,0.3608,85601.0,85575.0,0.3608]
[1743602203155,0.3608,85601.0,85583.0,0.3608]
[1743602203156,0.1329,85600.0,85583.0,0.3608]
[1743602203358,0.13350001,85600.0,85584.0,0.2294]
[1743602203569,0.1329,85600.0,85584.0,0.95088]
[1743602204157,0.1329,85600.0,85584.0,0.96291369]
[1743602204347,0.1329,85600.0,85590.0,0.3608]
[1743602204552,0.1329,85600.0,85591.0,0.1308]
[1743602204749,0.31076986,85610.0,85591.0,0.1308]
[1743602204750,0.27318431,85622.0,85598.0,0.3608]
[1743602205058,0.23923548,85616.0,85612.0,0.3608]
[1743602205259,0.24071548,85616.0,85613.0,0.1289]
[1743602205450,0.04091548,85616.0,85614.0,0.09848]
[1743602205655,0.27318431,85622.0,85614.0,0.66004]
[1743602205863,0.27318431,85622.0,85621.0,0.3608]
[1743602206067,0.00017524,85627.0,85621.0,1.03272]
[1743602206252,0.00017524,85627.0,85622.0,0.1289]
[1743602206457,0.00017524,85627.0,85622.0,0.81086]
[1743602207153,0.00017524,85627.0,85623.0,0.0982]
[1743602207353,0.00017524,85627.0,85623.0,0.59192]
[1743602207560,0.00017524,85627.0,85624.0,0.22706]
[1743602207761,1e-08,85629.0,85625.0,0.3608]
[1743602208062,1e-08,85629.0,85626.0,0.1214]
[1743602208250,1e-08,85629.0,85626.0,0.76332]
[1743602208448,1e-08,85629.0,85626.0,0.91332]
[1743602208655,1e-08,85629.0,85627.0,0.1232]
[1743602208852,0.3608,85656.0,85628.0,0.1214]
[1743602209057,0.3608,85656.0,85641.0,0.3608]
[1743602209264,0.2534,85655.0,85642.0,0.1214]
[1743602209460,0.2534,85655.0,85642.0,0.12332]
[1743602209661,0.2534,85655.0,85642.0,0.31332]
[1743602209863,0.1245,85655.0,85642.0,0.42222919]
[1743602210165,0.1245,85655.0,85648.0,0.3608]
[1743602210359,0.1245,85655.0,85649.0,0.1214]
[1743602210559,0.1245,85655.0,85649.0,0.38332]
[1743602210760,0.00017513,85657.0,85649.0,0.38332]
[1743602210761,0.3608,85690.0,85649.0,0.84332]
[1743602210968,0.1235,85673.0,85658.0,0.3608]
[1743602211171,0.3608,85667.0,85659.0,0.09828]
[1743602211468,0.3608,85661.0,85659.0,0.00192]
[1743602211667,0.2485,85660.0,85633.0,0.3608]
[1743602211875,0.3608,85646.0,85642.0,0.02]
[1743602212055,0.3608,85646.0,85642.0,0.13209513]
[1743602212259,0.3608,85646.0,85642.0,0.14079666]
[1743602212465,0.00017513,85660.0,85642.0,0.78079666]
[1743602212860,0.00017513,85660.0,85642.0,0.01079666]
[1743602213060,0.2485,85677.0,85658.0,0.3608]
[1743602213261,0.3608,85675.0,85660.0,0.31076986]
[1743602213570,0.125,85677.0,85660.0,0.73272986]
[1743602213757,0.1235,85676.0,85660.0,0.73272986]
[1743602213963,0.3608,85682.0,85666.0,0.3608]
[1743602214164,0.3608,85682.0,85666.0,1.12272]
[1743602214165,0.00017513,85677.0,85666.0,1.12272]
[1743602214364,0.00017513,85677.0,85667.0,0.43846986]
[1743602214669,0.00017513,85677.0,85667.0,1.20038986]
[1743602215065,0.2469,85692.0,85676.0,0.3608]
[1743602215266,0.3608,85702.0,85680.0,0.31076986]
[1743602215470,0.3608,85695.0,85680.0,0.92276986]
[1743602215663,0.1217,85694.0,85685.0,0.3608]
[1743602215858,0.1217,85694.0,85686.0,0.1277]
[1743602216062,0.1217,85694.0,85686.0,0.40962]
[1743602216259,0.3608,85695.0,85687.0,0.1217]
[1743602216466,0.3608,85695.0,85687.0,0.47366]
[1743602216666,0.3608,85695.0,85687.0,0.37366]
[1743602216871,0.1252,85698.0,85687.0,0.37366]
[1743602217062,0.12181247,85699.0,85687.0,0.37366]
[1743602217269,0.3608,85695.0,85687.0,0.37366]
[1743602217571,0.1312,85698.0,85687.0,0.37366]
[1743602217875,0.492,85698.0,85687.0,0.37366]
[1743602218073,0.1316,85697.0,85687.0,0.37366]
[1743602218272,0.3608,85698.0,85687.0,0.49366]
[1743602219284,0.00011247,85699.0,85697.0,0.3608]
[1743602219468,0.1312,85716.0,85698.0,0.35284]
[1743602219669,0.1312,85716.0,85704.0,0.3608]
[1743602219868,0.1312,85716.0,85705.0,0.2538]
[1743602219869,0.1316,85715.0,85705.0,0.2538]
[1743602220075,0.1316,85715.0,85705.0,1.0538]
[1743602220270,0.1316,85715.0,85705.0,0.8938]
[1743602220477,0.3608,85712.0,85705.0,0.7938]
[1743602220676,0.3608,85712.0,85701.0,0.00017502]
[1743602220872,0.3608,85703.0,85701.0,0.00017502]
[1743602221179,0.2504,85702.0,85701.0,0.00017502]
[1743602221376,0.3608,85712.0,85701.0,0.00017502]
[1743602221680,0.2504,85711.0,85701.0,0.17017502]
[1743602222173,0.3608,85702.0,85701.0,0.00017502]
[1743602223281,0.3608,85702.0,85679.0,0.1281]
[1743602223579,0.2493,85701.0,85679.0,0.1281]
[1743602223767,0.2493,85701.0,85680.0,0.43416986]
[1743602223972,0.3608,85695.0,85680.0,0.43416986]
[1743602224279,0.3608,85681.0,85676.0,0.0986]
[1743602224465,0.2493,85680.0,85676.0,0.0986]
[1743602224670,0.2493,85680.0,85679.0,0.00017502]
[1743602225578,0.1271,85680.0,85679.0,0.20017502]
[1743602225872,0.1271,85680.0,85679.0,0.22213502]
[1743602226069,0.3608,85690.0,85679.0,0.31213502]
[1743602226269,0.3608,85690.0,85680.0,0.43426986]
[1743602226270,0.2582,85689.0,85680.0,0.43426986]
[1743602226476,0.2582,85689.0,85680.0,0.76618986]
[1743602226671,0.2582,85689.0,85680.0,0.75618986]
[1743602226979,0.2582,85689.0,85680.0,0.22192]
[1743602227176,0.3608,85681.0,85680.0,0.22192]
[1743602227584,0.3608,85681.0,85680.0,0.00192]
[1743602227878,0.3608,85681.0,85679.0,0.00017502]
[1743602228175,0.3806,85680.0,85679.0,0.00017502]
[1743602228383,0.51210227,85680.0,85621.0,0.3608]
[1743602228566,0.3608,85643.0,85627.0,0.1208]
[1743602228767,0.1264,85642.0,85632.0,0.3608]
[1743602228978,0.3608,85646.0,85639.0,0.3608]
[1743602229281,0.3608,85658.0,85640.0,0.35136]
[1743602229467,0.00017513,85651.0,85649.0,0.3608]
[1743602229665,0.00017513,85651.0,85649.0,0.56272]
[1743602229870,0.3608,85673.0,85649.0,0.67272]
[1743602230178,0.3608,85673.0,85658.0,0.3608]
[1743602230364,0.3608,85679.0,85658.0,0.6508]
[1743602230567,0.3608,85679.0,85665.0,0.3608]
[1743602230771,0.3608,85679.0,85665.0,0.00192]
[1743602230973,0.3608,85669.0,85665.0,0.00192]
[1743602231183,0.3608,85668.0,85663.0,0.00017513]
[1743602231376,0.49120068,85668.0,85663.0,0.00017513]
[1743602231685,0.1331,85667.0,85663.0,0.00017513]
[1743602232185,0.1331,85667.0,85663.0,0.56097513]
[1743602232481,0.1331,85667.0,85663.0,0.00209513]
[1743602232668,0.1206,85666.0,85663.0,0.00017513]
[1743602232870,0.1264,85665.0,85663.0,0.00017513]
[1743602233074,0.1224,85680.0,85663.0,0.00017513]
[1743602233075,0.1224,85680.0,85664.0,0.09804]
[1743602233277,0.00017488,85681.0,85675.0,0.3608]